bitfinex/quotes_BTCUSD_20241128
["timestamp","ask_amount","ask_price","bid_price","bid_amount"]
[1732818797849,0.15558961,95178.0,95177.0,0.01540465]
[1732818798090,0.15558961,95178.0,95177.0,0.01740465]
[1732818799003,0.00092361,95178.0,95177.0,0.12247165]
[1732818799633,0.00092361,95178.0,95177.0,0.13484816]
[1732818799839,0.00092361,95178.0,95177.0,0.1329887]
[1732818800029,0.00092361,95178.0,95177.0,0.0279217]
[1732818800602,0.00092361,95178.0,95177.0,0.1329887]
[1732818802530,0.00092361,95178.0,95177.0,0.11589887]
[1732818802759,0.00092361,95178.0,95177.0,0.37867779]
[1732818802979,0.00092361,95178.0,95177.0,0.37681833]
[1732818803403,0.00092361,95178.0,95177.0,0.23583392]
[1732818803843,0.00092361,95178.0,95177.0,0.24897783]
[1732818804053,0.00092361,95178.0,95177.0,0.43692128]
[1732818804500,0.00092361,95178.0,95177.0,0.52687783]
[1732818804728,0.0108438,95197.0,95177.0,0.52687783]
[1732818804729,0.0108438,95197.0,95196.0,0.105046]
[1732818804938,0.0108438,95197.0,95196.0,0.32258367]
[1732818804939,0.000862,95197.0,95196.0,0.32258367]
[1732818805159,0.0008618,95209.0,95208.0,0.105033]
[1732818805388,0.0008618,95209.0,95208.0,0.20973682]
[1732818805839,0.0008618,95209.0,95208.0,0.20973664]
[1732818806045,0.0008618,95209.0,95208.0,0.20787821]
[1732818806254,0.0008618,95209.0,95208.0,0.2097367]
[1732818806966,0.0008618,95209.0,95208.0,0.2127367]
[1732818807175,0.0008618,95209.0,95208.0,0.24295884]
[1732818807383,0.0008618,95209.0,95208.0,0.35903866]
[1732818807592,0.0008618,95209.0,95208.0,0.21839026]
[1732818807803,0.0018618,95209.0,95208.0,0.25261246]
[1732818808651,0.0028618,95209.0,95208.0,0.26161246]
[1732818808860,0.0028618,95209.0,95208.0,0.23139026]
[1732818810114,0.0028618,95209.0,95208.0,0.2444585]
[1732818810982,0.0028618,95209.0,95208.0,0.2746807]
[1732818812294,0.0028618,95209.0,95208.0,0.26154061]
[1732818813085,0.0028618,95209.0,95208.0,0.14562716]
[1732818813278,0.0028618,95209.0,95208.0,0.14767114]
[1732818813533,0.0028618,95209.0,95208.0,0.1458124]
[1732818815062,0.0028618,95209.0,95208.0,0.12873029]
[1732818815288,0.0028618,95209.0,95208.0,0.14581253]
[1732818815760,0.0028618,95209.0,95208.0,0.14767127]
[1732818815982,0.0028618,95209.0,95208.0,0.14581253]
[1732818816200,0.0028618,95209.0,95208.0,0.04077953]
[1732818816441,0.0028618,95209.0,95208.0,0.13530038]
[1732818816935,0.0028618,95209.0,95208.0,0.14767162]
[1732818820979,0.0028618,95209.0,95208.0,0.13715957]
[1732818827034,0.0028618,95209.0,95208.0,0.13530086]
[1732818832571,0.0028618,95209.0,95208.0,0.14844131]
[1732818832800,0.0028618,95209.0,95208.0,0.13530086]
[1732818833023,0.0028618,95209.0,95208.0,0.14844131]
[1732818833956,0.0028618,95209.0,95208.0,0.13530086]
[1732818839003,0.0028618,95209.0,95208.0,0.14844168]
[1732818839657,0.0028618,95209.0,95208.0,0.04340868]
[1732818839876,0.0028618,95209.0,95208.0,0.14844168]
[1732818841756,0.0028618,95209.0,95208.0,0.04340868]
[1732818841992,0.0028618,95209.0,95208.0,0.03026786]
[1732818842208,0.0028618,95209.0,95208.0,0.13530086]
[1732818842446,0.0028618,95209.0,95208.0,0.03026786]
[1732818842665,0.0028618,95209.0,95208.0,0.13530086]
[1732818843322,0.0028618,95209.0,95208.0,0.03026786]
[1732818843822,0.0028618,95209.0,95208.0,0.13530086]
[1732818844045,0.0028618,95209.0,95208.0,0.03026786]
[1732818844295,0.0028618,95209.0,95208.0,0.13530086]
[1732818846328,0.0028618,95209.0,95208.0,0.03026786]
[1732818847016,0.0028618,95209.0,95208.0,0.12403214]
[1732818847234,0.0513618,95209.0,95208.0,0.12403214]
[1732818847456,0.0028618,95209.0,95208.0,0.12403214]
[1732818847723,0.0028618,95209.0,95208.0,0.03026786]
[1732818850195,0.1078938,95209.0,95208.0,0.03026786]
[1732818850423,0.0028618,95209.0,95208.0,0.03026786]
[1732818851348,0.0028618,95209.0,95208.0,0.03026886]
[1732818852102,0.1078938,95209.0,95208.0,0.03026886]
[1732818852340,0.0028618,95209.0,95208.0,0.03026886]
[1732818853516,0.1078938,95209.0,95208.0,0.26530208]
[1732818856145,0.1078938,95209.0,95208.0,0.03026886]
[1732818858224,0.1078938,95209.0,95208.0,0.26530208]
[1732818858467,0.1078938,95209.0,95208.0,0.27844345]
[1732818858923,0.0028618,95209.0,95208.0,0.26530208]
[1732818859155,0.1078938,95209.0,95208.0,0.03026886]
[1732818859602,0.0028618,95209.0,95208.0,0.03026886]
[1732818859823,0.0028618,95209.0,95208.0,0.27841625]
[1732818860277,0.0028618,95209.0,95208.0,0.38344925]
[1732818860958,0.0028618,95209.0,95208.0,0.14844339]
[1732818865196,0.0028618,95209.0,95208.0,0.15379439]
[1732818865436,0.0028618,95209.0,95208.0,0.25849851]
[1732818865686,0.0028618,95209.0,95208.0,0.2566396]
[1732818865935,0.0028618,95209.0,95208.0,0.26447627]
[1732818868237,0.0028618,95209.0,95208.0,0.26447556]
[1732818871130,0.0028618,95209.0,95208.0,0.25663849]
[1732818871355,0.0028618,95209.0,95208.0,0.22641445]
[1732818871813,0.0028618,95209.0,95208.0,0.25663826]
[1732818872063,0.0028618,95209.0,95208.0,0.23955524]
[1732818872283,0.0028618,95209.0,95208.0,0.25663801]
[1732818873722,0.0028618,95209.0,95208.0,0.26365365]
[1732818874668,0.0028618,95209.0,95208.0,0.25663801]
[1732818874883,0.1078938,95209.0,95208.0,0.0487598]
[1732818875328,0.0028618,95209.0,95208.0,0.0487598]
[1732818875775,0.1078938,95209.0,95208.0,0.04876159]
[1732818879103,0.1078938,95209.0,95208.0,0.04876192]
[1732818887293,0.0028618,95209.0,95208.0,0.04876192]
[1732818887715,0.1078938,95209.0,95208.0,0.04876192]
[1732818888368,0.0028618,95209.0,95208.0,0.04876192]
[1732818888582,0.1078938,95209.0,95208.0,0.04876192]
[1732818889344,0.1078938,95209.0,95208.0,0.03824864]
[1732818889566,0.1078938,95209.0,95208.0,0.04876192]
[1732818890254,0.0028618,95209.0,95208.0,0.04876192]
[1732818891634,0.1078938,95209.0,95208.0,0.04876192]
[1732818891852,0.0028618,95209.0,95208.0,0.04876192]
[1732818892078,0.1078938,95209.0,95208.0,0.04876192]
[1732818892307,0.0028618,95209.0,95208.0,0.04876192]
[1732818894128,0.0028618,95209.0,95208.0,0.15379492]
[1732818900035,0.0028618,95209.0,95208.0,0.15379319]
[1732818901665,0.0028618,95209.0,95208.0,0.25849732]
[1732818901890,0.0028618,95209.0,95208.0,0.2566384]
[1732818902116,0.0028618,95209.0,95208.0,0.25663838]
[1732818905394,0.0028618,95209.0,95208.0,0.23298485]
[1732818905623,0.0028618,95209.0,95208.0,0.25663831]
[1732818906995,0.0028618,95209.0,95208.0,0.2636615]
[1732818907882,0.0028618,95209.0,95208.0,0.25663831]
[1732818908802,0.0028618,95209.0,95208.0,0.26366003]
[1732818909288,0.0028618,95209.0,95208.0,0.25663831]
[1732818909547,0.0028618,95209.0,95208.0,0.2636598]
[1732818909755,0.0028618,95209.0,95208.0,0.25663831]
[1732818911586,0.0514618,95209.0,95208.0,0.0487601]
[1732818912316,0.0514618,95209.0,95208.0,0.1537931]
[1732818913012,0.0514618,95209.0,95208.0,0.0487601]
[1732818913915,0.0514618,95209.0,95208.0,0.03561929]
[1732818915053,0.0514618,95209.0,95208.0,0.01853624]
[1732818915241,0.0514618,95209.0,95208.0,0.03562015]
[1732818915719,0.0514618,95209.0,95208.0,0.27097891]
[1732818916208,0.1564938,95209.0,95208.0,0.27097891]
[1732818916425,0.0514618,95209.0,95208.0,0.27097891]
[1732818917959,0.1564938,95209.0,95208.0,0.27097891]
[1732818918877,0.1564938,95209.0,95208.0,0.25392191]
[1732818919099,0.1564938,95209.0,95208.0,0.27100604]
[1732818919912,0.0514618,95209.0,95208.0,0.27101557]
[1732818920138,0.1564938,95209.0,95208.0,0.27101557]
[1732818921051,0.0514618,95209.0,95208.0,0.27101557]
[1732818921272,0.0514618,95209.0,95208.0,0.03562037]
[1732818921722,0.1564938,95209.0,95208.0,0.03562037]
[1732818921948,0.1564938,95209.0,95208.0,0.03562024]
[1732818923053,0.1564938,95209.0,95208.0,0.27104288]
[1732818927563,0.1664538,95209.0,95208.0,0.27104288]
[1732818929858,0.1664538,95209.0,95208.0,0.27103506]
[1732818930100,0.1664538,95209.0,95208.0,0.03562024]
[1732818931877,0.1664538,95209.0,95208.0,0.27098072]
[1732818932338,0.1664538,95209.0,95208.0,0.03562024]
[1732818932555,0.0614218,95209.0,95208.0,0.27097936]
[1732818933007,0.0614218,95209.0,95208.0,0.01853624]
[1732818933226,0.0614218,95209.0,95208.0,0.02510708]
[1732818933443,0.0614218,95209.0,95208.0,0.03562042]
[1732818934843,0.0128218,95209.0,95208.0,0.24349863]
[1732818935345,0.0128218,95209.0,95208.0,0.32289863]
[1732818936025,0.0128218,95209.0,95208.0,0.60539642]
[1732818936250,0.0128218,95209.0,95208.0,0.61853693]
[1732818936695,0.0128218,95209.0,95208.0,0.33603914]
[1732818939591,0.0128218,95209.0,95208.0,0.33603756]
[1732818943383,0.0128218,95209.0,95208.0,0.33603751]
[1732818946413,0.0128218,95209.0,95208.0,0.33603748]
[1732818954424,0.0128218,95209.0,95208.0,0.25663748]
[1732818959988,0.0128218,95209.0,95208.0,0.25663746]
[1732818960447,0.0128218,95209.0,95208.0,0.04875925]
[1732818960691,0.2419538,95209.0,95208.0,0.04875925]
[1732818960948,0.1369218,95209.0,95208.0,0.04875925]
[1732818961165,0.1369218,95209.0,95208.0,0.15379225]
[1732818962095,0.1359218,95209.0,95208.0,0.14479225]
[1732818962321,0.1359218,95209.0,95208.0,0.12113991]
[1732818962544,0.1359218,95209.0,95208.0,0.14979432]
[1732818962758,0.1349218,95209.0,95208.0,0.14579432]
[1732818962974,0.1349218,95209.0,95208.0,0.04076132]
[1732818963191,0.1349218,95209.0,95208.0,0.04276132]
[1732818963669,0.1349218,95209.0,95208.0,0.27778591]
[1732818964110,0.1349218,95209.0,95208.0,0.38281891]
[1732818965490,0.1349218,95209.0,95208.0,0.36310699]
[1732818965716,0.1339218,95209.0,95208.0,0.39535977]
[1732818966181,0.1339218,95209.0,95208.0,0.16033518]
[1732818966396,0.1339218,95209.0,95208.0,0.3953772]
[1732818966634,0.1339218,95209.0,95208.0,0.2903442]
[1732818966864,0.1339218,95209.0,95208.0,0.3953772]
[1732818967373,0.1339218,95209.0,95208.0,0.38223575]
[1732818967626,0.1339218,95209.0,95208.0,0.27720275]
[1732818968290,0.1339218,95209.0,95208.0,0.04216073]
[1732818968523,0.2389538,95209.0,95208.0,0.04216073]
[1732818968977,0.2389538,95209.0,95208.0,0.04216086]
[1732818969224,0.2389538,95209.0,95208.0,0.02962025]
[1732818969458,0.1339218,95209.0,95208.0,0.04215841]
[1732818974605,0.1347836,95209.0,95208.0,0.04215841]
[1732818975968,0.1347836,95209.0,95208.0,0.04215959]
[1732818976702,0.1347836,95209.0,95208.0,0.14719259]
[1732818977161,0.0574836,95209.0,95208.0,0.14719259]
[1732818977605,0.0106836,95209.0,95208.0,0.16033386]
[1732818979195,0.0106836,95209.0,95208.0,0.1603328]
[1732818982632,0.0106836,95209.0,95208.0,0.16033329]
[1732818986007,0.0106836,95209.0,95208.0,0.16033633]
[1732818986943,0.0106836,95209.0,95208.0,0.16205973]
[1732818987779,0.0106836,95209.0,95208.0,0.38411919]
[1732818988051,0.0106836,95209.0,95208.0,0.14891903]
[1732818988296,0.0106836,95209.0,95208.0,0.16206093]
[1732818988948,0.0106836,95209.0,95208.0,0.05702793]
[1732818989211,0.0588836,95209.0,95208.0,0.29225497]
[1732818989448,0.0588836,95209.0,95208.0,0.27911307]
[1732818990150,0.0588836,95209.0,95208.0,0.05702766]
[1732818991775,0.0588836,95209.0,95208.0,0.27904178]
[1732818992013,0.0588836,95209.0,95208.0,0.05702781]
[1732818992472,0.0588836,95209.0,95208.0,0.04388603]
[1732818993154,0.0588836,95209.0,95208.0,0.03134414]
[1732818994117,0.0588836,95209.0,95208.0,0.04389126]
[1732818994355,0.1639156,95209.0,95208.0,0.02680676]
[1732818995060,0.0588836,95209.0,95208.0,0.02680676]
[1732818995941,0.1639156,95209.0,95208.0,0.02680676]
[1732818996160,0.0588836,95209.0,95208.0,0.02680676]
[1732818996385,0.0588836,95209.0,95208.0,0.03134403]
[1732818997099,0.1639156,95209.0,95208.0,0.03134403]
[1732818997798,0.0588836,95209.0,95208.0,0.03134403]
[1732818998659,0.0588836,95209.0,95208.0,0.03134404]
[1732818998871,0.1639156,95209.0,95208.0,0.01425964]
[1732818999097,0.1639156,95209.0,95208.0,0.03134404]
[1732818999311,0.1639156,95209.0,95208.0,0.02083056]
[1732819004427,0.1639156,95209.0,95208.0,0.25600707]
[1732819004883,0.1639156,95209.0,95208.0,0.02083056]
[1732819005122,0.1639156,95209.0,95208.0,0.16199594]
[1732819005123,0.2544156,95209.0,95208.0,0.16199594]
[1732819005362,0.2544156,95209.0,95208.0,0.01425964]
[1732819005607,0.2544156,95209.0,95208.0,0.10837175]
[1732819005853,0.2544156,95209.0,95208.0,0.01425964]
[1732819006338,0.2544156,95209.0,95208.0,0.10836156]
[1732819008167,0.2544156,95209.0,95208.0,0.01425964]
[1732819009350,0.2544156,95209.0,95208.0,0.10834016]
[1732819012437,0.2544156,95209.0,95208.0,0.01425964]
[1732819019959,0.1393836,95209.0,95208.0,0.01425964]
[1732819020184,0.0106836,95209.0,95208.0,0.12586412]
[1732819020657,0.0106836,95209.0,95208.0,0.13637747]
[1732819020953,0.0106836,95209.0,95208.0,0.23922268]
[1732819021193,0.0106836,95209.0,95208.0,0.36392268]
[1732819021685,0.0106836,95209.0,95208.0,0.78025022]
[1732819021917,0.0106836,95209.0,95208.0,0.35892268]
[1732819022150,0.0106836,95209.0,95208.0,0.36392268]
[1732819022616,0.0106836,95209.0,95208.0,0.35692268]
[1732819022841,0.0116836,95209.0,95208.0,0.36792268]
[1732819023302,0.0116836,95209.0,95208.0,0.36592268]
[1732819024211,0.0116836,95209.0,95208.0,0.37092268]
[1732819024890,0.0116836,95209.0,95208.0,0.3709191]
[1732819028307,0.0116836,95209.0,95208.0,0.37091916]
[1732819029460,0.0116836,95209.0,95208.0,0.36591916]
[1732819029643,0.0106836,95209.0,95208.0,0.35691916]
[1732819029903,0.0116836,95209.0,95208.0,0.35240758]
[1732819030134,0.0126836,95209.0,95208.0,0.36140758]
[1732819030576,0.0126836,95209.0,95208.0,0.23670758]
[1732819031700,0.0126836,95209.0,95208.0,0.23670799]
[1732819031925,0.0126836,95209.0,95208.0,0.02882978]
[1732819032141,0.0126836,95209.0,95208.0,0.02225964]
[1732819032406,0.0126836,95209.0,95208.0,0.31499252]
[1732819032613,0.0126836,95209.0,95208.0,0.12729264]
[1732819033044,0.0126836,95209.0,95208.0,0.13386323]
[1732819033263,0.0126836,95209.0,95208.0,0.12729264]
[1732819033699,0.0126836,95209.0,95208.0,0.13386319]
[1732819033914,0.0126836,95209.0,95208.0,0.36847616]
[1732819034558,0.0126836,95209.0,95208.0,0.26344316]
[1732819034771,0.0126836,95209.0,95208.0,0.36847616]
[1732819035001,0.0126836,95209.0,95208.0,0.02225964]
[1732819035928,0.0126836,95209.0,95208.0,0.02883016]
[1732819036157,0.0126836,95209.0,95208.0,0.13386316]
[1732819036408,0.0126836,95209.0,95208.0,0.36847613]
[1732819036634,0.0126836,95209.0,95208.0,0.26344313]
[1732819037067,0.0126836,95209.0,95208.0,0.02883016]
[1732819038863,0.0126836,95209.0,95208.0,0.13386316]
[1732819039112,0.0126836,95209.0,95208.0,0.36849485]
[1732819039329,0.0126836,95209.0,95208.0,0.26344625]
[1732819039541,0.0126836,95209.0,95208.0,0.13386316]
[1732819039765,0.0126836,95209.0,95208.0,0.36847925]
[1732819040689,0.0126836,95209.0,95208.0,0.37899199]
[1732819042174,0.0126836,95209.0,95208.0,0.37893067]
[1732819042783,0.0126836,95209.0,95208.0,0.0393429]
[1732819043217,0.0126836,95209.0,95208.0,0.27389767]
[1732819044016,0.0126836,95209.0,95208.0,0.0393429]
[1732819044231,0.0126836,95209.0,95208.0,0.27389767]
[1732819044871,0.0126836,95209.0,95208.0,0.0393429]
[1732819046181,0.0126836,95209.0,95208.0,0.27389767]
[1732819047047,0.0126836,95209.0,95208.0,0.27383621]
[1732819048867,0.0126836,95209.0,95208.0,0.25675295]
[1732819049075,0.0126836,95209.0,95208.0,0.27383602]
[1732819052354,0.0126836,95209.0,95208.0,0.03934271]
[1732819059016,0.0126836,95209.0,95208.0,0.03934266]
[1732819066024,0.0126836,95209.0,95208.0,0.03934268]
[1732819068489,0.0126836,95209.0,95208.0,0.32101999]
[1732819071395,0.0126836,95209.0,95208.0,0.03934268]
[1732819071607,0.0126836,95209.0,95208.0,0.32128069]
[1732819071832,0.0126836,95209.0,95208.0,0.03934268]
[1732819076090,0.0126836,95209.0,95208.0,0.03934261]
[1732819077175,0.0608836,95209.0,95208.0,0.03934261]
[1732819077381,0.1659156,95209.0,95208.0,0.03934261]
[1732819077833,0.0608836,95209.0,95208.0,0.03934261]
[1732819078056,0.2655156,95209.0,95208.0,0.03934261]
[1732819078323,0.2655156,95209.0,95208.0,0.02883001]
[1732819078538,0.36836081,95209.0,95208.0,0.25749183]
[1732819078805,0.36836081,95209.0,95208.0,0.02225964]
[1732819079534,0.36736081,95209.0,95208.0,0.01325964]
[1732819079781,0.37036081,95209.0,95208.0,0.01325964]
[1732819080229,0.36936081,95209.0,95208.0,0.00725964]
[1732819080662,0.36936081,95209.0,95208.0,0.00925964]
[1732819081106,0.36936081,95209.0,95208.0,0.00725964]
[1732819081586,0.37236081,95209.0,95208.0,0.00725964]
[1732819094113,0.52236081,95209.0,95208.0,0.00725964]
[1732819094330,0.55536081,95209.0,95208.0,0.00725964]
[1732819094556,0.54536081,95209.0,95208.0,0.00725964]
[1732819094760,0.55536081,95209.0,95208.0,0.00725964]
[1732819094967,0.65819227,95209.0,95208.0,0.00725964]
[1732819095212,0.65819227,95209.0,95208.0,6.4e-07]
[1732819095415,0.66819227,95209.0,95208.0,6.4e-07]
[1732819095837,0.148044,95198.0,95197.0,0.001723]
[1732819096060,0.37628921,95198.0,95197.0,0.001723]
[1732819097143,0.37828921,95198.0,95197.0,0.001723]
[1732819097582,0.35828921,95198.0,95197.0,0.001723]
[1732819112330,0.005,95198.0,95197.0,0.28981321]
[1732819112581,0.005,95198.0,95197.0,0.10683788]
[1732819112796,0.005,95198.0,95197.0,0.03978078]
[1732819113012,0.005,95198.0,95197.0,0.02663788]
[1732819113235,0.002,95198.0,95197.0,0.02677379]
[1732819113687,0.002,95198.0,95197.0,0.03277379]
[1732819113896,0.105043,95199.0,95197.0,0.02677379]
[1732819114104,0.105043,95199.0,95198.0,0.02491488]
[1732819114724,0.115042,95200.0,95198.0,0.02491488]
[1732819114952,0.115042,95200.0,95199.0,0.02491488]
[1732819115171,0.125042,95200.0,95199.0,0.02491378]
[1732819115409,0.22788721,95200.0,95199.0,0.00657165]
[1732819115649,0.125044,95198.0,95197.0,0.00985891]
[1732819115888,0.22788921,95198.0,95197.0,0.00685891]
[1732819116579,0.22788921,95198.0,95197.0,0.00185891]
[1732819117516,0.22988921,95198.0,95197.0,0.00185891]
[1732819118645,0.23188921,95198.0,95197.0,0.00185891]
[1732819125678,0.25488921,95198.0,95197.0,0.00185891]
[1732819139801,0.28702115,95198.0,95197.0,0.00185891]
[1732819140635,0.30792991,95198.0,95197.0,0.00185891]
[1732819141306,0.129044,95198.0,95197.0,0.00185891]
[1732819142182,0.119044,95198.0,95197.0,0.00185891]
[1732819142421,0.014,95198.0,95197.0,0.00843144]
[1732819142644,0.014,95198.0,95197.0,0.05713144]
[1732819142853,0.014,95198.0,95197.0,0.25560762]
[1732819143070,0.014,95198.0,95197.0,0.36065262]
[1732819143308,0.014,95198.0,95197.0,0.06764594]
[1732819143524,0.012,95198.0,95197.0,0.06764594]
[1732819143738,0.014,95198.0,95197.0,0.06764594]
[1732819143957,0.012,95198.0,95197.0,0.06764594]
[1732819144398,0.012,95198.0,95197.0,0.21556402]
[1732819144399,0.013,95198.0,95197.0,0.21556402]
[1732819144620,0.011,95198.0,95197.0,0.21556402]
[1732819145053,0.013,95198.0,95197.0,0.21556402]
[1732819145525,0.011,95198.0,95197.0,0.21556402]
[1732819145732,0.011,95198.0,95197.0,0.32060902]
[1732819146161,0.011,95198.0,95197.0,0.32360902]
[1732819146369,0.011,95198.0,95197.0,0.18269094]
[1732819146609,0.011,95198.0,95197.0,0.18269037]
[1732819147018,0.001,95198.0,95197.0,0.18269037]
[1732819147233,0.011,95198.0,95197.0,0.18269037]
[1732819148284,0.001,95198.0,95197.0,0.60030182]
[1732819148523,0.001,95198.0,95197.0,0.36513558]
[1732819148727,0.001,95198.0,95197.0,0.37827783]
[1732819151417,0.001,95198.0,95197.0,0.61272076]
[1732819152287,0.001,95198.0,95197.0,0.37827783]
[1732819152534,0.001,95198.0,95197.0,0.61272076]
[1732819152754,0.001,95198.0,95197.0,0.37827783]
[1732819153249,0.001,95198.0,95197.0,0.58238736]
[1732819153456,0.001,95198.0,95197.0,0.61261345]
[1732819154306,0.001,95198.0,95197.0,0.39103113]
[1732819155659,0.001,95198.0,95197.0,0.37827521]
[1732819155873,0.001,95198.0,95197.0,0.02894322]
[1732819156104,0.001,95198.0,95197.0,0.0184298]
[1732819156361,0.001,95198.0,95197.0,0.1234748]
[1732819156807,0.001,95198.0,95197.0,0.0184298]
[1732819157706,0.001,95198.0,95197.0,0.1234748]
[1732819157995,0.001,95198.0,95197.0,0.0184298]
[1732819163486,0.001,95198.0,95197.0,0.01843069]
[1732819165551,0.001,95198.0,95197.0,0.13399055]
[1732819166740,0.001,95198.0,95197.0,0.14713244]
[1732819166968,0.001,95198.0,95197.0,0.1339896]
[1732819167420,0.001,95198.0,95197.0,0.14713242]
[1732819168396,0.001,95198.0,95197.0,0.24089227]
[1732819169060,0.001,95198.0,95197.0,0.14713242]
[1732819170189,0.001,95198.0,95197.0,0.14713194]
[1732819170411,0.001,95198.0,95197.0,0.24089179]
[1732819170886,0.001,95198.0,95197.0,0.14713194]
[1732819171311,0.001,95198.0,95197.0,0.24089179]
[1732819173622,0.001,95198.0,95197.0,0.24089183]
[1732819175399,0.001,95198.0,95197.0,0.14713198]
[1732819177487,0.001,95198.0,95197.0,0.37227719]
[1732819177944,0.0008617,95208.0,95207.0,0.181334]
[1732819178178,0.0008617,95208.0,95207.0,0.5018488]
[1732819178410,0.0008617,95208.0,95207.0,0.50863225]
[1732819178693,0.0008617,95208.0,95207.0,0.32118568]
[1732819178916,0.0008617,95208.0,95207.0,0.31440222]
[1732819179137,0.0008617,95208.0,95207.0,0.36090222]
[1732819179359,0.0008617,95208.0,95207.0,0.36768422]
[1732819180490,0.0008617,95208.0,95207.0,0.37268422]
[1732819180731,0.0008617,95208.0,95207.0,0.37968422]
[1732819181209,0.0008617,95208.0,95207.0,0.36590222]
[1732819181431,0.0008617,95208.0,95207.0,0.60920412]
[1732819181654,0.0008617,95208.0,95207.0,0.37490222]
[1732819182110,0.0008617,95208.0,95207.0,0.60926094]
[1732819182561,0.0008617,95208.0,95207.0,0.37490222]
[1732819185248,0.0008617,95208.0,95207.0,0.37490232]
[1732819185464,0.0008617,95208.0,95207.0,0.32840232]
[1732819186123,0.0008617,95208.0,95207.0,0.04422311]
[1732819186362,0.0008617,95208.0,95207.0,0.23191853]
[1732819186576,0.0008617,95208.0,95207.0,0.03108263]
[1732819187463,0.0008617,95208.0,95207.0,0.21879071]
[1732819187707,0.0008617,95208.0,95207.0,0.03108263]
[1732819188145,0.0008617,95208.0,95207.0,0.21879071]
[1732819188399,0.0008617,95208.0,95207.0,0.03108263]
[1732819189755,0.0008617,95208.0,95207.0,0.26571774]
[1732819191649,0.0008617,95208.0,95207.0,0.45245174]
[1732819191864,0.0008617,95208.0,95207.0,0.452591]
[1732819192294,0.0008617,95208.0,95207.0,0.21781663]
[1732819195424,0.0008617,95208.0,95207.0,0.23095818]
[1732819196285,0.0008617,95208.0,95207.0,0.14925818]
[1732819197372,0.0008617,95208.0,95207.0,0.12560477]
[1732819197651,0.0008617,95208.0,95207.0,0.14925954]
[1732819199221,0.0008617,95208.0,95207.0,0.136118]
[1732819203062,0.0008617,95208.0,95207.0,0.14394661]
[1732819211005,0.0008617,95208.0,95207.0,0.03891261]
[1732819211233,0.1058947,95208.0,95207.0,0.03891261]
[1732819211447,0.0008617,95208.0,95207.0,0.03891261]
[1732819211691,0.0008617,95208.0,95207.0,0.27377135]
[1732819212435,0.0008617,95208.0,95207.0,0.03891261]
[1732819212914,0.0008617,95208.0,95207.0,0.02182937]
[1732819212915,0.1058947,95208.0,95207.0,0.02182937]
[1732819213135,0.1058947,95208.0,95207.0,0.0389138]
[1732819213364,0.1058947,95208.0,95207.0,0.0284003]
[1732819213598,0.0008617,95208.0,95207.0,0.0284003]
[1732819216285,0.0008617,95208.0,95207.0,0.02182937]
[1732819216506,0.0008617,95208.0,95207.0,0.02840031]
[1732819218390,0.0008617,95208.0,95207.0,0.13343431]
[1732819219114,0.0008617,95208.0,95207.0,0.14394775]
[1732819222949,0.0008617,95208.0,95207.0,0.13611838]
[1732819223207,0.0008617,95208.0,95207.0,0.14395754]
[1732819223691,0.0008617,95208.0,95207.0,0.42568678]
[1732819223913,0.0008617,95208.0,95207.0,0.14395754]
[1732819226236,0.0008617,95208.0,95207.0,0.14395675]
[1732819228837,0.1281617,95208.0,95207.0,0.14395675]
[1732819232526,0.0499617,95208.0,95207.0,0.14395675]
[1732819236556,0.0499617,95208.0,95207.0,0.1439569]
[1732819238826,0.0499617,95208.0,95207.0,0.119034]
[1732819240140,0.0499617,95208.0,95207.0,0.12954707]
[1732819240357,0.0499617,95208.0,95207.0,0.13611774]
[1732819240580,0.0499617,95208.0,95207.0,0.15447253]
[1732819240805,0.0499617,95208.0,95207.0,0.1610432]
[1732819241284,0.0499617,95208.0,95207.0,0.16104315]
[1732819241980,0.1549947,95208.0,95207.0,0.05600915]
[1732819242148,0.0499617,95208.0,95207.0,0.05600915]
[1732819248114,0.0499617,95208.0,95207.0,0.05600916]
[1732819250337,0.0499617,95208.0,95207.0,0.03892542]
[1732819251214,0.0499617,95208.0,95207.0,0.12687567]
[1732819251465,0.0499617,95208.0,95207.0,0.14395942]
[1732819252124,0.0500017,95208.0,95207.0,0.14395942]
[1732819252340,0.0009017,95208.0,95207.0,0.14395942]
[1732819253073,0.0009017,95208.0,95207.0,0.22375942]
[1732819254893,0.0009017,95208.0,95207.0,0.14395942]
[1732819258225,0.0009017,95208.0,95207.0,0.14395939]
[1732819261002,0.0009017,95208.0,95207.0,0.14397075]
[1732819261234,0.0009017,95208.0,95207.0,0.13345769]
[1732819262145,0.0009017,95208.0,95207.0,0.14397075]
[1732819263743,0.0009017,95208.0,95207.0,0.14397085]
[1732819267559,0.0009017,95208.0,95207.0,0.13415084]
[1732819269083,0.0009017,95208.0,95207.0,0.12363778]
[1732819269963,0.0009017,95208.0,95207.0,0.22834193]
[1732819270180,0.0009017,95208.0,95207.0,0.23699594]
[1732819270404,0.0009017,95208.0,95207.0,0.31249265]
[1732819272455,0.0009017,95208.0,95207.0,0.38079265]
[1732819278907,0.0009017,95208.0,95207.0,0.37661266]
[1732819279124,0.0009017,95208.0,95207.0,0.38561266]
[1732819279606,0.0099995,95239.0,95229.0,0.38521]
[1732819279847,0.0099995,95239.0,95229.0,0.48805521]
[1732819280066,0.0009014,95243.0,95229.0,0.51759151]
[1732819280344,0.0009014,95243.0,95235.0,0.203803]
[1732819280556,0.0099365,95262.0,95251.0,0.203785]
[1732819280799,0.0099365,95262.0,95251.0,0.30848789]
[1732819281036,0.01,95272.0,95251.0,0.32100243]
[1732819281252,0.01,95272.0,95251.0,0.33150902]
[1732819282171,0.01,95272.0,95251.0,0.34050902]
[1732819282464,0.01,95272.0,95251.0,0.62115788]
[1732819283401,0.01,95272.0,95251.0,0.33000243]
[1732819283852,0.0043338,95252.0,95251.0,0.33800243]
[1732819284301,0.0043338,95252.0,95251.0,0.33797873]
[1732819285870,0.0043338,95252.0,95251.0,0.35052275]
[1732819287237,0.0043338,95252.0,95251.0,0.36623575]
[1732819287471,0.0043338,95252.0,95251.0,0.43046369]
[1732819288414,0.0043338,95252.0,95251.0,0.90046788]
[1732819288656,0.0043338,95252.0,95251.0,0.6305375]
[1732819289580,0.0098597,95280.0,95264.0,0.127971]
[1732819289812,0.0098597,95280.0,95264.0,0.35171627]
[1732819290092,0.0214789,95289.0,95264.0,0.3828607]
[1732819291185,0.0214789,95289.0,95264.0,0.67152366]
[1732819292126,0.0214789,95289.0,95264.0,0.5418607]
[1732819292356,0.0214789,95289.0,95264.0,0.5940607]
[1732819292802,0.0214789,95289.0,95264.0,0.5900607]
[1732819293229,0.0214789,95289.0,95264.0,0.5950607]
[1732819293667,0.0214789,95289.0,95264.0,0.5900607]
[1732819293928,0.0214789,95289.0,95264.0,0.5810607]
[1732819294153,0.0214789,95289.0,95264.0,0.5900607]
[1732819294380,0.0214789,95289.0,95281.0,0.360052]
[1732819294611,0.0214789,95289.0,95281.0,0.46946332]
[1732819294823,0.0214789,95289.0,95281.0,0.53127221]
[1732819295484,0.0214789,95289.0,95281.0,0.5247061]